fUSD/lending_fUSD_20251217
["ID","MTS","AMOUNT","RATE_DAILY","PERIOD"]
[398881546,1765962639094,-607.19,0.00015929,2]
[398881548,1765962639104,-200.0,0.00015929,2]
[398881549,1765962639113,-500.0,0.00015929,2]
[398881550,1765962639123,-200.0,0.00015929,2]
[398881552,1765962639132,-1746.66,0.00015993,2]
[398881553,1765962639142,-11334.86904554,0.00016113,2]
[398881554,1765962639151,-8729.4666432,0.00016113,2]
[398881556,1765962639161,-1000.0,0.0001613,2]
[398881557,1765962639171,-300.0,0.00016156,2]
[398881559,1765962639180,-220.74077702,0.00016156,2]
[398881560,1765962639190,-553.64373807,0.00016156,2]
[398881561,1765962639199,-1000.0,0.00016156,2]
[398881563,1765962639208,-947.35912125,0.00016156,2]
[398881564,1765962639218,-620.0,0.00016156,2]
[398881566,1765962639227,-166.66,0.00016161,2]
[398881567,1765962639236,-607.19,0.00016203,2]
[398881568,1765962639246,-500.0,0.00016322,2]
[398881570,1765962639255,-312.0,0.00016356,2]
[398881571,1765962639265,-10830.32763827,0.00016367,2]
[398881573,1765962639274,-510.0,0.00016421,2]
[398881574,1765962639284,-500.0,0.00016437,2]
[398881575,1765962639293,-517.08990196,0.00016437,2]
[398881577,1765962639303,-500.0,0.00016437,2]
[398881578,1765962639312,-167.65709845,0.00016437,2]
[398881579,1765962639322,-500.0,0.00016437,2]
[398881581,1765962639331,-436.26074643,0.00016437,2]
[398881582,1765962639340,-1000.0,0.00016438,2]
[398881584,1765962639350,-961.3562878,0.00016438,2]
[398881585,1765962639359,-300.0,0.00016438,2]
[398881586,1765962639368,-300.0,0.00016438,2]
[398881588,1765962639378,-300.0,0.00016438,2]
[398881589,1765962639387,-300.0,0.00016438,2]
[398881590,1765962639397,-300.0,0.00016438,2]
[398881592,1765962639407,-300.0,0.00016438,2]
[398881593,1765962639416,-300.0,0.00016438,2]
[398881595,1765962639426,-300.0,0.00016438,2]
[398881596,1765962639436,-300.0,0.00016438,2]
[398881597,1765962639445,-300.0,0.00016438,2]
[398881599,1765962639455,-300.0,0.00016438,2]
[398881600,1765962639465,-300.0,0.00016438,2]
[398881601,1765962639474,-300.0,0.00016438,2]
[398881603,1765962639484,-300.0,0.00016438,2]
[398881604,1765962639494,-300.0,0.00016438,2]
[398881606,1765962639503,-300.0,0.00016438,2]
[398881607,1765962639513,-300.0,0.00016438,2]
[398881608,1765962639523,-300.0,0.00016438,2]
[398881610,1765962639533,-300.0,0.00016438,2]
[398881611,1765962639542,-300.0,0.00016438,2]
[398881613,1765962639552,-300.0,0.00016438,2]
[398881614,1765962639561,-300.0,0.00016438,2]
[398881615,1765962639571,-197.26900433,0.00016438,2]
[398881617,1765962639580,-500.0,0.00016438,2]
[398881618,1765962639589,-500.0,0.00016438,2]
[398881619,1765962639598,-500.0,0.00016438,2]
[398881621,1765962639607,-500.0,0.00016438,2]
[398881622,1765962639617,-500.0,0.00016438,2]
[398881624,1765962639626,-500.0,0.00016438,2]
[398881625,1765962639636,-600.0,0.00016438,2]
[398881626,1765962639646,-642.81849055,0.00016438,2]
[398881628,1765962639655,-642.81849055,0.00016438,2]
[398881629,1765962639665,-642.81849055,0.00016438,2]
[398881631,1765962639675,-642.81849055,0.00016438,2]
[398881632,1765962639684,-642.81849055,0.00016438,2]
[398881633,1765962639694,-642.81849055,0.00016438,2]
[398881635,1765962639703,-642.81849055,0.00016438,2]
[398881636,1765962639712,-642.81849055,0.00016438,2]
[398881637,1765962639722,-642.81849055,0.00016438,2]
[398881639,1765962639731,-642.81849055,0.00016438,2]
[398881640,1765962639741,-642.81849055,0.00016438,2]
[398881642,1765962639753,-642.81849055,0.00016438,2]
[398881643,1765962639762,-642.81849055,0.00016438,2]
[398881645,1765962639772,-642.81849055,0.00016438,2]
[398881646,1765962639781,-642.81849055,0.00016438,2]
[398881647,1765962639791,-642.81849055,0.00016438,2]
[398881649,1765962639800,-642.81849055,0.00016438,2]
[398881650,1765962639809,-642.81849055,0.00016438,2]
[398881651,1765962639818,-642.81849055,0.00016438,2]
[398881653,1765962639832,-642.81849055,0.00016438,2]
[398881654,1765962639841,-642.81849055,0.00016438,2]
[398881656,1765962639851,-642.81849055,0.00016438,2]
[398881657,1765962639861,-642.81849055,0.00016438,2]
[398881658,1765962639870,-642.81849055,0.00016438,2]
[398881660,1765962639879,-642.81849055,0.00016438,2]
[398881661,1765962639888,-642.81849055,0.00016438,2]
[398881662,1765962639899,-642.81849055,0.00016438,2]
[398881664,1765962639908,-642.81849055,0.00016438,2]
[398881665,1765962639918,-642.81849055,0.00016438,2]
[398881666,1765962639927,-642.81849055,0.00016438,2]
[398881667,1765962639937,-642.81849055,0.00016438,2]
[398881668,1765962639947,-642.81849055,0.00016438,2]
[398881669,1765962639956,-642.81849055,0.00016438,2]
[398881670,1765962639966,-642.81849055,0.00016438,2]
[398881671,1765962639975,-642.81849055,0.00016438,2]
[398881672,1765962639985,-642.81849055,0.00016438,2]
[398881673,1765962639995,-642.81849055,0.00016438,2]
[398881674,1765962640005,-642.81849055,0.00016438,2]
[398881675,1765962640014,-642.81849055,0.00016438,2]
[398881676,1765962640024,-642.81849055,0.00016438,2]
[398881677,1765962640035,-642.81849055,0.00016438,2]
[398881678,1765962640046,-642.81849055,0.00016438,2]
[398881680,1765962640055,-642.81849055,0.00016438,2]
[398881681,1765962640065,-642.81849055,0.00016438,2]
[398881683,1765962640075,-642.81849055,0.00016438,2]
[398881684,1765962640084,-642.81849055,0.00016438,2]
[398881685,1765962640094,-642.81849055,0.00016438,2]
[398881687,1765962640104,-642.81849055,0.00016438,2]
[398881688,1765962640113,-642.81849055,0.00016438,2]
[398881689,1765962640122,-642.81849055,0.00016438,2]
[398881691,1765962640132,-642.81849055,0.00016438,2]
[398881693,1765962640141,-642.81849055,0.00016438,2]
[398881694,1765962640151,-642.81849055,0.00016438,2]
[398881696,1765962640162,-642.81849055,0.00016438,2]
[398881697,1765962640172,-642.81849055,0.00016438,2]
[398881699,1765962640181,-642.81849055,0.00016438,2]
[398881700,1765962640191,-642.81849055,0.00016438,2]
[398881701,1765962640200,-642.81849055,0.00016438,2]
[398881703,1765962640210,-642.81849055,0.00016438,2]
[398881704,1765962640219,-631.13088162,0.00016438,2]
[398881705,1765962640228,-631.13088162,0.00016438,2]
[398881707,1765962640237,-631.13088162,0.00016438,2]
[398881708,1765962640248,-631.13088162,0.00016438,2]
[398881710,1765962640258,-631.13088162,0.00016438,2]
[398881711,1765962640267,-631.13088162,0.00016438,2]
[398881712,1765962640276,-631.13088162,0.00016438,2]
[398881714,1765962640285,-631.13088162,0.00016438,2]
[398881715,1765962640294,-631.13088162,0.00016438,2]
[398881716,1765962640303,-631.13088162,0.00016438,2]
[398881718,1765962640312,-631.13088162,0.00016438,2]
[398881719,1765962640322,-631.13088162,0.00016438,2]
[398881720,1765962640331,-631.13088162,0.00016438,2]
[398881722,1765962640340,-631.13088162,0.00016438,2]
[398881723,1765962640349,-631.13088162,0.00016438,2]
[398881725,1765962640358,-631.13088162,0.00016438,2]
[398881726,1765962640367,-631.13088162,0.00016438,2]
[398881727,1765962640376,-631.13088162,0.00016438,2]
[398881729,1765962640386,-631.13088162,0.00016438,2]
[398881730,1765962640393,-631.13088162,0.00016438,2]
[398881731,1765962640400,-631.13088162,0.00016438,2]
[398881733,1765962640409,-631.13088162,0.00016438,2]
[398881734,1765962640417,-721.0,0.00016438,2]
[398881735,1765962640425,-721.0,0.00016438,2]
[398881737,1765962640433,-721.0,0.00016438,2]
[398881738,1765962640440,-801.71075194,0.00016438,2]
[398881739,1765962640447,-481.46730423,0.00016473,2]
[398881741,1765962640455,-607.19,0.00016477,2]
[398881742,1765962640464,-11334.86904554,0.00016511,2]
[398881743,1765962640472,-8729.4666432,0.00016511,2]
[398881745,1765962640479,-2118.4267478,0.00016536,2]
[398881746,1765962640488,-166.66,0.00016677,2]
[398881747,1765962640496,-574.12855637,0.00016704,2]
[398881749,1765962640505,-164.0,0.00016712,2]
[398881750,1765962640513,-500.0,0.00016723,2]
[398881751,1765962640521,-248.40404476,0.00016725,2]
[398881753,1765962640530,-185.57590641,0.00016739,2]
[398881754,1765962640539,-250.0,0.00016739,2]
[398881755,1765962640548,-5000.0,0.00016739,3]
[398881757,1765962640557,-1257.48357959,0.00016739,3]
[398881758,1765962640566,-195.0,0.00016739,2]
[398881759,1765962640575,-300.0,0.00016739,2]
[398881761,1765962640585,-300.0,0.00016739,2]
[398881762,1765962640594,-300.0,0.00016739,2]
[398881764,1765962640605,-300.0,0.00016739,2]
[398881765,1765962640614,-300.0,0.00016739,2]
[398881766,1765962640623,-607.21,0.00016751,2]
[398881768,1765962640632,-994.82485904,0.00016847,2]
[398881769,1765962640641,-155.20047335,0.00016847,2]
[398881770,1765962640650,-823.0,0.00016879,2]
[398881772,1765962640660,-201.0,0.00016888,2]
[398881773,1765962640669,-10000.0,0.000169,2]
[398881774,1765962640678,-11334.86904554,0.00016909,2]
[398881776,1765962640688,-8729.4666432,0.00016909,2]
[398881777,1765962640697,-500.0,0.00016915,2]
[398881779,1765962640706,-500.0,0.00016915,2]
[398881781,1765962640715,-500.0,0.00016915,2]
[398881782,1765962640724,-277865.9927498,0.00016916,2]
[398881784,1765962640733,-499.99999999,0.00016947,2]
[398881785,1765962640742,-286.90864955,0.00016947,2]
[398881786,1765962640752,-502.6322512,0.00016947,2]
[398881788,1765962640762,-500.0,0.00016947,2]
[398881789,1765962640771,-500.0,0.00016947,2]
[398881790,1765962640780,-500.0,0.00016947,2]
[398881792,1765962640790,-500.0,0.00016973,2]
[398881793,1765962640799,-500.0,0.00016973,2]
[398881795,1765962640808,-502.93181499,0.00016973,2]
[398881796,1765962640817,-500.0,0.00016973,2]
[398881797,1765962640830,-500.0,0.00016973,2]
[398881799,1765962640839,-201.55783771,0.00016973,2]
[398881800,1765962640849,-276.35412541,0.00016973,2]
[398881801,1765962640858,-500.0,0.00016973,2]
[398881803,1765962640868,-500.0,0.00016973,2]
[398881804,1765962640877,-500.0,0.00016973,2]
[398881806,1765962640887,-500.71124086,0.00016973,2]
[398881807,1765962640897,-500.0,0.00016973,2]
[398881808,1765962640907,-500.0,0.00016973,2]
[398881810,1765962640916,-500.0,0.00016973,2]
[398881811,1765962640925,-500.79172108,0.00016973,2]
[398881812,1765962640934,-500.0,0.00016973,2]
[398881814,1765962640943,-500.0,0.00016973,2]
[398881815,1765962640953,-476.4698319,0.00016973,2]
[398881816,1765962640962,-500.0,0.00016973,2]
[398881818,1765962640973,-341.41992772,0.00016973,2]
[398881819,1765962640982,-900.0,0.00016979,2]
[398881821,1765962640991,-500.0,0.00016986,2]
[398881822,1765962640999,-619.0,0.00016986,2]
[398881823,1765962641008,-2467.231,0.00017,2]
[398881825,1765962641017,-3292.0,0.00017023,2]
[398881826,1765962641026,-150.0,0.00017088,2]
[398881827,1765962641035,-150.0,0.00017088,2]
[398881829,1765962641044,-150.0,0.00017088,2]
[398881830,1765962641053,-150.0,0.00017088,2]
[398881831,1765962641062,-150.0,0.00017088,2]
[398881833,1765962641071,-221.28365954,0.00017088,2]
[398881834,1765962641080,-150.0,0.00017088,2]
[398881835,1765962641090,-154.80455544,0.00017088,2]
[398881837,1765962641099,-156.03264286,0.00017088,2]
[398881838,1765962641108,-150.0,0.00017088,2]
[398881840,1765962641118,-150.0,0.00017088,2]
[398881841,1765962641127,-994.82485902,0.00017189,2]
[398881842,1765962641137,-166.66,0.00017194,2]
[398881844,1765962641146,-11613.0,0.00017214,2]
[398881845,1765962641157,-595.37131296,0.00017252,2]
[398881846,1765962641166,-619.0,0.0001726,3]
[398881848,1765962641176,-2427.0,0.0001727,2]
[398881849,1765962641186,-4799.0,0.0001727,2]
[398881851,1765962641196,-6524.0,0.0001727,2]
[398881852,1765962641206,-11334.86904554,0.00017308,2]
[398881853,1765962641216,-8729.4666432,0.00017308,2]
[398881855,1765962641226,-500.0,0.00017318,2]
[398881856,1765962641235,-150.96547858,0.00017494,2]
[398881857,1765962641244,-1000.0,0.00017521,2]
[398881859,1765962641254,-500.0,0.00017521,2]
[398881860,1765962641263,-653.30692586,0.00017521,2]
[398881861,1765962641272,-500.0,0.00017521,2]
[398881863,1765962641281,-500.0,0.00017521,2]
[398881864,1765962641292,-1000.0,0.00017521,2]
[398881866,1765962641301,-334.11795043,0.00017521,2]
[398881867,1765962641310,-500.0,0.00017521,2]
[398881868,1765962641319,-311.1,0.00017525,2]
[398881870,1765962641328,-642.94,0.00017525,2]
[398881871,1765962641337,-994.82485902,0.00017531,2]
[398881872,1765962641346,-619.0,0.00017534,4]
[398881874,1765962641355,-439.0,0.00017629,2]
[398881875,1765962641364,-11334.86904554,0.00017706,2]
[398881877,1765962641374,-8729.4666432,0.00017706,2]
[398881878,1765962641384,-166.66,0.0001771,2]
[398881879,1765962641393,-150.0,0.00017721,2]
[398881881,1765962641403,-427.63,0.00017728,2]
[398881882,1765962641413,-150.99,0.00017728,2]
[398881883,1765962641423,-346.68,0.00017728,2]
[398881885,1765962641432,-10721.68,0.00017728,2]
[398881886,1765962641442,-1530.11,0.00017728,2]
[398881888,1765962641451,-5061.74,0.00017728,2]
[398881889,1765962641460,-617.40005154,0.000178,2]
[398881890,1765962641469,-619.0,0.00017808,5]
[398881892,1765962641479,-994.82485902,0.00017874,2]
[398881893,1765962641488,-324.7542401,0.0001798,2]
[398881894,1765962641497,-3500.0,0.0001799,2]
[398881896,1765962641506,-152.0,0.0001799,2]
[398881897,1765962641517,-152.0,0.0001799,2]
[398881899,1765962641526,-152.0,0.0001799,2]
[398881900,1765962641535,-152.0,0.0001799,2]
[398881901,1765962641544,-152.0,0.0001799,2]
[398881903,1765962641553,-152.0,0.0001799,2]
[398881904,1765962641562,-152.0,0.0001799,2]
[398881906,1765962641571,-152.0,0.0001799,2]
[398881907,1765962641581,-152.0,0.0001799,2]
[398881908,1765962641590,-154.18394056,0.0001799,2]
[398881910,1765962641599,-152.0,0.0001799,2]
[398881911,1765962641607,-152.0,0.0001799,2]
[398881912,1765962641617,-152.0,0.0001799,2]
[398881914,1765962641626,-152.0,0.0001799,2]
[398881915,1765962641635,-153.95299097,0.0001799,2]
[398881917,1765962641644,-152.0,0.0001799,2]
[398881918,1765962641653,-154.0,0.0001799,2]
[398881919,1765962641662,-154.0,0.0001799,2]
[398881921,1765962641671,-154.0,0.0001799,2]
[398881922,1765962641680,-154.0,0.0001799,2]
[398881923,1765962641689,-154.0,0.0001799,2]
[398881925,1765962641698,-154.0,0.0001799,2]
[398881926,1765962641708,-154.0,0.0001799,2]
[398881928,1765962641717,-154.0,0.0001799,2]
[398881929,1765962641726,-154.0,0.0001799,2]
[398881930,1765962641735,-154.0,0.0001799,2]
[398881932,1765962641745,-154.0,0.0001799,2]
[398881933,1765962641754,-161.02697292,0.0001799,2]
[398881934,1765962641763,-154.0,0.0001799,2]
[398881936,1765962641772,-154.0,0.0001799,2]
[398881937,1765962641781,-154.0,0.0001799,2]
[398881938,1765962641790,-154.0,0.0001799,2]
[398881940,1765962641799,-154.0,0.0001799,2]
[398881941,1765962641809,-154.0,0.0001799,2]
[398881943,1765962641818,-154.0,0.0001799,2]
[398881944,1765962641831,-154.0,0.0001799,2]
[398881945,1765962641840,-206.3648007,0.0001799,2]
[398881947,1765962641850,-154.0,0.0001799,2]
[398881948,1765962641859,-154.0,0.0001799,2]
[398881950,1765962641869,-154.0,0.0001799,2]
[398881951,1765962641878,-154.0,0.0001799,2]
[398881952,1765962641887,-153.0,0.0001799,2]
[398881954,1765962641896,-153.0,0.0001799,2]
[398881955,1765962641905,-153.0,0.0001799,2]
[398881956,1765962641915,-273.54277402,0.0001799,2]
[398881958,1765962641924,-153.0,0.0001799,2]
[398881959,1765962641933,-153.0,0.0001799,2]
[398881961,1765962641942,-153.0,0.0001799,2]
[398881962,1765962641952,-153.0,0.0001799,2]
[398881963,1765962641961,-154.89752726,0.0001799,2]
[398881976,1765962642261,-3528.58960874,0.00018,2]
[398881978,1765962642271,-150.643,0.00018011,2]
[398881979,1765962642281,-151.676,0.00018011,2]
[398881981,1765962642290,-264.673,0.00018011,2]
[398881982,1765962642300,-150.318,0.00018011,2]
[398881983,1765962642309,-206.581,0.00018011,2]
[398881985,1765962642318,-163.22,0.00018011,2]
[398881986,1765962642328,-150.0,0.00018011,2]
[398881987,1765962642337,-273.368,0.00018011,2]
[398881989,1765962642346,-152.096,0.00018011,2]
[398881990,1765962642355,-152.0,0.00018011,2]
[398881991,1765962642365,-612.0,0.00018011,2]
[398881993,1765962642375,-1607.0,0.00018011,2]
[398881994,1765962642386,-1326.104,0.00018011,2]
[398881996,1765962642395,-3453.0,0.00018011,2]
[398881997,1765962642404,-1261.0,0.00018011,2]
[398881998,1765962642414,-663.522,0.00018011,2]
[398882000,1765962642423,-911.0,0.00018011,2]
[398882001,1765962642432,-1197.0,0.00018011,2]
[398882002,1765962642442,-150.0,0.00018037,2]
[398882003,1765962642451,-150.0,0.00018037,2]
[398882004,1765962642461,-150.0,0.00018037,2]
[398882005,1765962642471,-658.77,0.00018055,2]
[398882006,1765962642480,-658.77,0.00018055,2]
[398882007,1765962642489,-658.77,0.00018055,2]
[398882008,1765962642499,-1500.0,0.00018068,2]
[398882009,1765962642509,-1500.0,0.00018068,2]
[398882010,1765962642519,-150.96547858,0.00018077,2]
[398882011,1765962642528,-619.0,0.00018082,6]
[398882012,1765962642538,-11334.86904554,0.00018104,2]
[398882013,1765962642547,-8729.4666432,0.00018104,2]
[398882014,1765962642556,-460.06,0.00018192,2]
[398882015,1765962642565,-320.6,0.00018192,2]
[398882016,1765962642575,-994.82485902,0.00018216,2]
[398882018,1765962642585,-166.66,0.00018227,2]
[398882019,1765962642595,-640.24385345,0.00018348,2]
[398882020,1765962642604,-900.0,0.00018348,2]
[398882021,1765962642614,-150.0,0.00018353,2]
[398882022,1765962642623,-619.0,0.00018356,7]
[398882024,1765962642633,-573.99014276,0.00018402,2]
[398882025,1765962642643,-11334.86904554,0.00018502,2]
[398882027,1765962642652,-8729.4666432,0.00018502,2]
[398882028,1765962642662,-1152.0,0.00018515,2]
[398882029,1765962642671,-994.82485902,0.00018558,2]
[398882031,1765962642681,-500.0,0.00018604,2]
[398882032,1765962642691,-352.71314952,0.00018604,2]
[398882033,1765962642700,-500.0,0.00018604,2]
[398882035,1765962642710,-1000.0,0.00018616,2]
[398882036,1765962642725,-3329.85380563,0.0001862,2]
[398882038,1765962642734,-619.0,0.0001863,8]
[398882039,1765962642743,-573.99014274,0.00018644,2]
[398882040,1765962642752,-150.96547858,0.0001866,2]
[398882042,1765962642762,-30408.46198994,0.00018662,2]
[398882043,1765962642771,-547.0,0.00018681,2]
[398882044,1765962642781,-2858.0,0.00018725,2]
[398882046,1765962642790,-547.0,0.00018744,2]
[398882047,1765962642799,-150.0,0.00018773,2]
[398882049,1765962642809,-500.0,0.00018773,2]
[398882050,1765962642818,-500.0,0.00018773,2]
[398882051,1765962642831,-500.0,0.00018773,2]
[398882053,1765962642840,-500.0,0.00018773,2]
[398882054,1765962642850,-500.0,0.00018773,2]
[398882055,1765962642859,-500.0,0.00018773,2]
[398882057,1765962642869,-500.0,0.00018773,2]
[398882058,1765962642879,-573.25919939,0.00018773,2]
[398882060,1765962642888,-500.0,0.00018773,2]
[398882061,1765962642897,-500.0,0.00018773,2]
[398882062,1765962642907,-500.0,0.00018773,2]
[398882064,1765962642916,-500.0,0.00018773,2]
[398882065,1765962642925,-500.0,0.00018773,2]
[398882067,1765962642935,-500.0,0.00018773,2]
[398882068,1765962642944,-500.0,0.00018773,2]
[398882069,1765962642953,-500.0,0.00018773,2]
[398882071,1765962642962,-500.0,0.00018773,2]
[398882072,1765962642971,-569.87602686,0.00018773,2]
[398882073,1765962642980,-178.93750453,0.00018773,2]
[398882076,1765962642989,-504.94445868,0.00018773,2]
[398882078,1765962642999,-500.0,0.00018773,2]
[398882079,1765962643008,-500.0,0.00018773,2]
[398882081,1765962643017,-500.0,0.00018773,2]
[398882082,1765962643026,-500.0,0.00018773,2]
[398882083,1765962643035,-498.08794248,0.00018773,2]
[398882085,1765962643044,-500.0,0.00018773,2]
[398882087,1765962643054,-340.19399092,0.00018773,2]
[398882090,1765962643063,-500.0,0.00018773,2]
[398882092,1765962643072,-500.0,0.00018773,2]
[398882094,1765962643082,-500.0,0.00018773,2]
[398882097,1765962643091,-500.0,0.00018773,2]
[398882100,1765962643100,-500.0,0.00018773,2]
[398882102,1765962643110,-500.0,0.00018773,2]
[398882105,1765962643118,-500.0,0.00018773,2]
[398882107,1765962643127,-500.0,0.00018773,2]
[398882108,1765962643137,-500.0,0.00018773,2]
[398882111,1765962643146,-576.83817064,0.00018773,2]
[398882113,1765962643155,-5098.39919,0.0001881,2]
[398882116,1765962643164,-200.0,0.00018847,2]
[398882117,1765962643173,-547.0,0.00018848,2]
[398882118,1765962643183,-200.0,0.00018848,2]
[398882120,1765962643192,-200.0,0.00018848,2]
[398882121,1765962643201,-547.0,0.00018873,2]
[398882122,1765962643211,-200.83834821,0.0001888,5]
[398882124,1765962643220,-1019.30416223,0.00018886,2]
[398882125,1765962643230,-573.99014274,0.00018886,2]
[398882126,1765962643239,-1019.30416222,0.00018893,2]
[398882128,1765962643248,-322.6107,0.00018894,2]
[398882129,1765962643258,-666.72878,0.00018894,2]
[398882130,1765962643268,-663.93287602,0.00018896,2]
[398882132,1765962643277,-248.3672316,0.000189,3]
[398882133,1765962643287,-994.82485902,0.000189,2]
[398882135,1765962643296,-11334.86904554,0.000189,2]
[398882136,1765962643305,-1019.30416222,0.000189,2]
[398882137,1765962643314,-8729.4666432,0.000189,2]
[398882139,1765962643323,-16519.09321944,0.000189,2]
[398882140,1765962643332,-3457.53642493,0.00018904,2]
[398882142,1765962643342,-619.0,0.00018904,9]
[398882143,1765962643351,-547.0,0.00018915,2]
[398882144,1765962643360,-163.30713897,0.00018973,2]
[398882146,1765962643369,-150.0,0.00018973,2]
[398882147,1765962643379,-500.0,0.00018985,2]
[398882148,1765962643388,-500.0,0.00018985,2]
[398882150,1765962643397,-500.0,0.00018985,2]
[398882151,1765962643407,-300.0,0.00018985,2]
[398882152,1765962643417,-56317.7716435,0.00018986,2]
[398882154,1765962643427,-6874.5334356,0.00018986,2]
[398882155,1765962643436,-691092.85502258,0.00018986,2]
[398882201,1765962644569,-10999.09543311,0.00018986,2]
[398882202,1765962644580,-595.49318903,0.00018986,2]
[398882204,1765962644591,-383.2728719,0.00018986,2]
[398882205,1765962644602,-36943.78340638,0.00018986,2]
[398882207,1765962644611,-1531.5261519,0.00018986,2]
[398882208,1765962644620,-10325.6778035,0.00018986,2]
[398882209,1765962644628,-151.0,0.00018986,2]
[398882211,1765962644637,-151.0,0.00018986,2]
[398882212,1765962644647,-151.0,0.00018986,2]
[398882214,1765962644656,-151.0,0.00018986,2]
[398882215,1765962644666,-265.347186,0.00018986,2]
[398882216,1765962644675,-151.0,0.00018986,2]
[398882218,1765962644683,-151.0,0.00018986,2]
[398882219,1765962644692,-151.0,0.00018986,2]
[398882220,1765962644701,-205.058916,0.00018986,2]
[398882222,1765962644710,-256.255416,0.00018986,2]
[398882223,1765962644719,-256.255416,0.00018986,2]
[398882225,1765962644728,-256.255416,0.00018986,2]
[398882226,1765962644737,-256.255416,0.00018986,2]
[398882227,1765962644747,-4007.2554627,0.00018986,2]
[398882229,1765962644755,-153.911303,0.00018986,2]
[398882230,1765962644764,-151.0,0.00018986,2]
[398882231,1765962644773,-3086.319527,0.00018986,2]
[398882233,1765962644782,-502.323179,0.00018986,2]
[398882234,1765962644791,-151.0,0.00018986,2]
[398882235,1765962644801,-151.0,0.00018986,2]
[398882237,1765962644810,-502.323179,0.00018986,2]
[398882238,1765962644820,-151.0,0.00018986,2]
[398882240,1765962644834,-151.0,0.00018986,2]
[398882241,1765962644843,-502.323179,0.00018986,2]
[398882242,1765962644852,-151.0,0.00018986,2]
[398882244,1765962644861,-502.323179,0.00018986,2]
[398882245,1765962644871,-151.0,0.00018986,2]
[398882246,1765962644880,-5950.23745901,0.00018986,2]
[398882248,1765962644891,-53507.58380998,0.00018986,2]
[398882249,1765962644902,-2416.06200004,0.00018986,2]
[398882251,1765962644913,-457.42297885,0.00018986,2]
[398882252,1765962644928,-2335.08328914,0.00018986,2]
[398882254,1765962644939,-597.61849702,0.00018986,2]
[398882255,1765962644954,-1632.3679,0.00018986,2]
[398882258,1765962645032,-357.4999999,0.00018986,2]
[398882259,1765962645043,-1540.0,0.00018986,2]
[398882260,1765962645062,-913.53,0.00018986,2]
[398882263,1765962645181,-563.0,0.0001727,2]
[398882264,1765962645190,-2918.16016373,0.00018986,2]
[398882265,1765962645201,-25005.11049263,0.00018986,2]
[398882267,1765962645210,-151.0,0.00018986,2]
[398882268,1765962645219,-151.0,0.00018986,2]
[398882269,1765962645228,-274.50588983,0.00018986,2]
[398882271,1765962645237,-150.0,0.00018986,2]
[398882272,1765962645246,-150.0,0.00018986,2]
[398882274,1765962645256,-150.0,0.00018986,2]
[398882275,1765962645266,-150.0,0.00018986,2]
[398882276,1765962645276,-150.0,0.00018986,2]
[398882278,1765962645285,-156.40675897,0.00018986,2]
[398882279,1765962645294,-150.0,0.00018986,2]
[398882280,1765962645303,-324.7542401,0.0001899,2]
[398882282,1765962645313,-324.7542401,0.0001899,2]
[398882283,1765962645322,-547.0,0.00018994,2]
[398882285,1765962645331,-1501.91914661,0.00018999,5]
[398882286,1765962645340,-500.0,0.00018999,2]
[398882287,1765962645349,-500.0,0.00018999,2]
[398882289,1765962645358,-206.01147421,0.00018999,2]
[398882290,1765962645368,-362.18898238,0.00019,2]
[398882291,1765962645377,-111625.43628903,0.00019,2]
[398882293,1765962645388,-1488.95523178,0.00019,2]
[398882294,1765962645399,-571007.88047063,0.00019,2]
[398882296,1765962645415,-6253.60672997,0.00019,2]